Workbook

Sheet Список по ТО
A1: Сводный отчёт по проведению ТО. ОП Нефтеюганск ООО "СпецТранс-Север" на 17.11.2022
A2: Автомобиль | F2: Прицеп | J2: Дислокация | K2: Пробег текущий | L2: Пробег ТО-1 | M2: Пробег ТО-2 | N2: м/ч (х/х) | O2: Пробег при следущем ТО-1 | P2: Пробег при следущем ТО-2 | Q2: Запас хода до ТО-1 | R2: Запас хода до ТО-2 | S2: Осталось часов РВО до замены фильтра
A3: № п/п | B3: Тип ТС | C3: Модель | D3: Гос № | E3: Год выпуска | F3: Тип прицепа | G3: Наименование | H3: Гос № | I3: Год выпуска
N4: РВО
A5: 1 | B5: Грузовой седельный тягач | C5: КАМАЗ 53504-50 | D5: Е 706 УА 702 | E5: 2021 | F5: Трал | G5: HARNUNG 943053 | H5: ВО 6504 02 | I5: 2022 | J5: Новый Уренгой | O5: =M5+10000 -> 10000 | P5: =M5+15000 -> 15000 | Q5: =(O5-K5)-(N5*40) -> 10000 | R5: =(P5-K5)-(N5*40) -> 15000
A6: 2 | B6: Грузовой седельный тягач | C6: КАМАЗ 53504-50 | D6: Е 683 УА 702 | E6: 2021 | F6: Трал | G6: HARNUNG 943053 | H6: ВО 6505 02 | I6: 2022 | J6: Новый Уренгой | K6: 76107 | L6: 63500 | M6: 63500 | O6: =L6+10000 -> 73500 | P6: 78500 | Q6: -2607 | R6: 2393
A7: 3 | B7: Грузовой седельный тягач | C7: КАМАЗ 431103 | D7: Е 766 ХВ 702 | E7: 2022 | F7: Трал | G7: HARNUNG 943053 | H7: ВО 6989 02 | I7: 2022 | J7: Новый Уренгой | K7: 48847 | L7: 45136 | M7: 45136 | O7: 55136 | P7: 60136 | Q7: 6289 | R7: 11289
A8: 4 | B8: Грузовой седельный тягач | C8: SHACMAN SX42586W385C SX4 | D8: К 450 СК 702 | E8: 2022 | F8: Трал | G8: Политранс 94163-050 | H8: ВС 2014 702 | I8: 2022 | J8: Новый Уренгой | L8: 3830 | M8: 3830 | O8: 13830 | P8: =M8+15000 -> 18830 | Q8: 13830 | R8: 18830
A9: 5 | B9: Грузовой седельный тягач | C9: SHACMAN SX42586W385C SX4 | D9: К 857 УХ 702 | E9: 2022 | F9: Трал | G9: Политранс 94163-050 | H9: ВС 2015 702 | I9: 2022 | J9: Новый Уренгой | L9: 3830 | M9: 3830 | O9: 13830 | P9: 18830 | Q9: 13830 | R9: 18830
A10: 6 | B10: Грузовой седельный тягач | C10: SHACMAN SX42586V385 | D10: К 026 ТА 702 | E10: 2022 | F10: Трал | G10: Хартунг 943053 | H10: ВО 9834 02 | I10: 2022 | J10: Нефтеюганск | K10: 5416 | L10: 4511 | M10: 4511 | O10: 14511 | P10: 19511 | Q10: 9095 | R10: 14095
A11: 7 | B11: Грузовой седельный тягач | C11: SHACMAN SX42586V385 | D11: К 042 ТА 702 | E11: 2022 | F11: Трал | G11: Хартунг 943053 | H11: ВО 9832 02 | I11: 2022 | J11: Нефтеюганск | K11: 5566 | L11: 4504 | M11: 4504 | O11: 14504 | P11: 19504 | Q11: 8938 | R11: 13938
A12: 8 | B12: Грузовой седельный тягач | C12: Камаз 4679К6 | D12: Е 291 СВ 702 | E12: 2022 | F12: Трал | G12: Хартунг 943053 | H12: ВО 9835 02 | I12: 2022 | J12: Нефтеюганск | K12: 10583 | L12: 2083 | M12: 2083 | O12: 12083 | P12: 17083 | Q12: 1500 | R12: 6500
A13: 9 | B13: Грузовой седельный тягач | C13: SHACMAN SX42586V385 | D13: К 527 ТВ 702 | E13: 2022 | F13: Трал | G13: Политранс 94163-050 | H13: ВС 2017 702 | I13: 2022 | J13: Нефтеюганск | K13: 6758 | L13: 3965 | M13: 3965 | O13: 13965 | P13: 18965 | Q13: 7207 | R13: 12207
A14: 10 | B14: Грузовой седельный тягач | C14: SHACMAN SX42586V385 | D14: К 561 ТВ 702 | E14: 2022 | F14: Трал | G14: Политранс 94163-050 | H14: ВС 2016 702 | I14: 2022 | J14: Нефтеюганск | K14: 6861 | L14: 3967 | M14: 3967 | O14: 13967 | P14: 18967 | Q14: 7106 | R14: 12106
A15: 11 | B15: Грузовой седельный тягач | C15: КАМАЗ 431103 | D15: К 883 ТТ 702 | E15: 2022 | F15: Площадка | G15: Политранс 94171 | H15: ВС 0425 02 | I15: 2022 | J15: Новый Уренгой | K15: 7237 | L15: 2210 | M15: 2210 | O15: =L15+10000 -> 12210 | P15: 17210 | Q15: 4973 | R15: 9973
A16: 12 | B16: Грузовой седельный тягач | C16: КАМАЗ 431103 | D16: К 340 ТУ 702 | E16: 2022 | F16: Площадка | G16: SPECPRICEP 994283 | H16: ВС 0427 02 | I16: 2022 | J16: Новый Уренгой | K16: 3117 | L16: 239 | M16: 239 | O16: 10239 | P16: 15239 | Q16: 7122 | R16: 12122
A17: 13 | B17: Грузовой седельный тягач | C17: КАМАЗ 431103 | D17: Е 272 СВ 702 | E17: 2022 | F17: Площадка | G17: SPECPRICEP994283 | H17: ВН 0077 02 | I17: 2022 | J17: Нефтеюганск | K17: 14278 | L17: 14278 | M17: 1933 | O17: =L17+10000 -> 24278 | P17: 16933 | Q17: 10000 | R17: 2655
A18: 14 | B18: Грузовой седельный тягач | C18: КАМАЗ 44108-RF | D18: Х 290 АТ 102 | E18: 2017 | F18: Трал | G18: ЧМЗАП-99064 | H18: АТ 701386 | I18: 2014 | J18: Новый Уренгой | K18: 240288 | L18: 235971 | M18: 235971 | O18: =L18+10000 -> 245971 | P18: 250971 | Q18: 5683 | R18: 10683
A19: 15 | B19: Грузовой седельный тягач | C19: КАМАЗ 44108-RF | D19: К 643 КУ 186 | E19: 2016 | F19: Трал | G19: SPECPRICEP994283 | H19: АУ 6578 86 | I19: 2016 | J19: Нефтеюганск | K19: 409565 | L19: 406365 | M19: 406365 | O19: 416365 | P19: 421365 | Q19: 6800 | R19: 11800
A20: 16 | B20: Грузовой седельный тягач | C20: КАМАЗ 44108-RF | D20: Е 098 СУ 702 | E20: 2022 | F20: Трал | G20: HARNUNG 943053 | H20: ВО 9834 02 | I20: 2022 | J20: Новый Уренгой | K20: 17465 | L20: 17465 | M20: 17465 | O20: 27465 | P20: 32465 | Q20: 10000 | R20: 15000
A21: 17 | B21: Грузовой седельный тягач | C21: КАМАЗ 431103 | D21: Е 095 СУ 702 | E21: 2022 | F21: Трал | G21: HARNUNG 943053 | H21: ВО 0932 02 | I21: 2022 | J21: Нефтеюганск | K21: 17000 | L21: 16369 | M21: 16369 | O21: 26369 | P21: 31369 | Q21: 9369 | R21: 14369
A22: 18 | B22: Грузовой седельный тягач | C22: КАМАЗ 44108-RF | D22: К143КХ 186 | E22: 2015 | F22: Трал | G22: ЧМЗАП-99064 | H22: АС 7019 86 | I22: 2011 | J22: Нефтеюганск | K22: 331625 | L22: 326195 | M22: 326195 | O22: 336195 | P22: 341195 | Q22: 4570 | R22: 9570
A23: 19 | B23: Грузовой седельный тягач | C23: КАМАЗ 44108-RF | D23: К 246 КС 186 | E23: 2015 | F23: Трал | G23: SPECPRICEP994283 | H23: АУ 6577 86 | I23: 2016 | J23: Нефтеюганск | K23: 351539 | L23: 346636 | M23: 346636 | O23: 356636 | P23: =M23+15000 -> 361636 | Q23: 5097 | R23: 10097
A24: 20 | B24: Грузовой седельный тягач | C24: МАЗ 6430А9-1320-020 | D24: В 833 УН 86 | E24: 2010 | F24: Трал | G24: SPECPRICEP904283 | H24: АР 8066 86 | I24: 2008 | J24: Нефтеюганск | K24: 294190 | L24: 294190 | M24: 294190 | O24: 304190 | P24: 309190 | Q24: 10000 | R24: 15000
A25: 21 | B25: Грузовой седельный тягач | C25: MAN TGA 33/410 6X6 BBS-WW | D25: Р 315 ВА 186 | E25: 2011 | F25: Трал | G25: ТСП 9416-0000011 | H25: ВО 0201 02 | I25: 2017 | J25: Нефтеюганск | K25: 390791 | L25: 389780 | M25: 389780 | O25: 399780 | P25: =M25+20000 -> 409780 | Q25: 8989 | R25: 18989
A26: 22 | B26: Грузовой седельный тягач | C26: Mercedes-Benz ACTROS 3350 S | D26: С 866 СС 186 | E26: 2006 | F26: Трал | G26: KASSBOHRER LOWBED | H26: BC 0189 02 | I26: 2022 | J26: Нефтеюганск | K26: 500932 | L26: 492420 | M26: 492420 | O26: 502420 | P26: 507420 | Q26: 1488 | R26: 6488
A27: 23 | B27: Грузовой седельный тягач | C27: Mercedes-Benz ACTROS 3346 AS | D27: Е 942 АА 702 | E27: 2017 | F27: Трал | G27: SPECPRICEP904283 | H27: ВО 0437 02 | I27: 2018 | J27: Новый Уренгой | K27: 335663 | L27: 335663 | M27: 335663 | O27: 345663 | P27: =M27+15000 -> 350663 | Q27: 10000 | R27: 15000
A28: 24 | B28: Грузовой седельный тягач | C28: МАЗ 6430А9-1320-020 | D28: Х 255 ХК 86 | E28: 2012 | F28: трал | G28: 907734 | H28: АС 8202 86 | I28: 2019 | J28: Нефтеюганск | K28: 17456 | L28: 11287 | M28: 11287 | O28: 21287 | P28: 26287 | Q28: 3831 | R28: 8831
A29: 25 | B29: Грузовой седельный тягач | C29: КАМАЗ 431103 | D29: Е 037 АТ 702 | E29: 2019 | F29: Площадка | G29: SPECPRICEP 994283 | H29: ВС 0734 02 | I29: 2020 | J29: Новый Уренгой | K29: 120229 | L29: 115181 | M29: 115181 | O29: 125181 | P29: =M29+15000 -> 130181 | Q29: 4952 | R29: 9952
A30: 26 | B30: Грузовой седельный тягач | C30: КАМАЗ 65225-RG | D30: Е 366 АУ 702 | E30: 2017 | F30: Трал | G30: ТСП 9416-0000011 | H30: ВР 6462 74 | I30: 2017 | J30: Новый Уренгой | K30: 231199 | L30: 221199 | M30: 221199 | O30: 231199 | P30: 236199 | Q30: 0 | R30: 5000
A31: 27 | B31: Грузовой седельный тягач | C31: КАМАЗ 65225-RG | D31: Е 407 ВК 702 | E31: 2017 | F31: трал | G31: ТСП 9416-0000011 | H31: ВН 1879 02 | I31: 2017 | J31: Новый Уренгой | K31: 198402 | L31: 194735 | M31: 194735 | O31: 204735 | P31: 209735 | Q31: 6333 | R31: 11333
A32: 28 | B32: Грузовой седельный тягач | C32: КАМАЗ 65225-RT | D32: Е 930 АА 702 | E32: 2018 | F32: Трал | G32: SPECPRICEP 994283 | H32: ВО 0439 02 | I32: 2018 | J32: Новый Уренгой | K32: 171618 | L32: 171618 | M32: 171618 | O32: 181618 | P32: 186618 | Q32: 10000 | R32: 15000
A33: 29 | B33: Грузовой седельный тягач | C33: КАМАЗ 44108-RF | D33: К 337 КУ 186 | E33: 2016 | F33: Трал | G33: ЧМЗАП-99064 | H33: АС 7364 86 | I33: 2015 | J33: Новый Уренгой | K33: 310903 | L33: 309898 | M33: 309898 | O33: 319898 | P33: 324898 | Q33: 8995 | R33: 13995
A34: 30 | B34: Грузовой седельный тягач | C34: КАМАЗ 44108 | D34: К 412 УУ 86 | E34: 2014 | F34: Площадка | G34: МАЗ | H34: АУ 6467 86 | I34: 2011 | J34: Новый Уренгой | K34: 402290 | L34: 396418 | M34: 396418 | O34: 406418 | P34: 411418 | Q34: 4128 | R34: 9128
A35: 31 | B35: Грузовой седельный тягач | C35: КАМАЗ 44108 | D35: Т 442 ВВ 186 | E35: 2013 | F35: Площадка | G35: МАЗ-875800-2010 | H35: АТ 7084 86 | I35: 2009 | J35: Новый Уренгой | K35: 49594 | L35: 49192 | M35: 49192 | O35: 59192 | P35: 64192 | Q35: =(O35-K35)-(N35*40) -> 9598 | R35: =(P35-K35)-(N35*40) -> 14598
A36: 32 | B36: Грузовой седельный тягач | C36: КАМАЗ 44108-24 | D36: Т 441 ВВ 186 | E36: 2011 | F36: Площадка | G36: МАЗ 975800-3012 | H36: АТ 7083 86 | I36: 2011 | J36: Новый Уренгой | K36: 557919 | L36: 555934 | M36: 555934 | O36: 565934 | P36: 570934 | Q36: 8015 | R36: 13015
A37: 33 | B37: Грузовой седельный тягач | C37: КАМАЗ 53504-46 | D37: В 614 ТУ 186 | E37: 2016 | F37: Площадка | G37: УЗСТ 9180-0 | H37: ВС 0837 02 | I37: 2022 | J37: Новый Уренгой | K37: 204318 | L37: 203445 | M37: 203445 | O37: 213445 | P37: 218445 | Q37: 9127 | R37: 14127
A38: 34 | B38: Грузовой седельный тягач | C38: КАМАЗ 431103 | D38: Е 840 ВА 702 | E38: 2019 | F38: Площадка | G38: SPECPRICEP 994283 | H38: ВС 0738 02 | I38: 2020 | J38: Новый Уренгой | K38: 66920 | L38: 62328 | M38: 62328 | O38: 72328 | P38: 77328 | Q38: 5408 | R38: 10408
A39: 35 | B39: Грузовой седельный тягач | C39: КАМАЗ 431103 | D39: Е 041 АА 702 | E39: 2019 | F39: Площадка | G39: SPECPRICEP 994283 | H39: ВС 0735 02 | I39: 2019 | J39: Новый Уренгой | K39: 121476 | L39: 119170 | M39: 119170 | O39: 129170 | P39: 134170 | Q39: 7694 | R39: 12694
A40: 36 | B40: Грузовой седельный тягач | C40: КАМАЗ 431103 | D40: Е 332 АС 702 | E40: 2019 | F40: Площадка | G40: SPECPRICEP 994283 | H40: ВС 0739 02 | I40: 2019 | J40: Новый Уренгой | K40: 103611 | L40: 102857 | M40: 102857 | O40: 112857 | P40: 117857 | Q40: 9246 | R40: 14246
A41: 37 | B41: Грузовой седельный тягач | C41: КАМАЗ 44108-RF | D41: Х 270 АТ 102 | E41: 2017 | F41: Площадка | G41: SPECPRICEP 994283 | H41: АХ 3549 86 | I41: 2018 | J41: Новый Уренгой | K41: 163548 | L41: 163533 | M41: 163533 | O41: 173533 | P41: 178533 | Q41: 9985 | R41: 14985
A42: 38 | B42: Грузовой седельный тягач | C42: КАМАЗ 44108-RF | D42: Х 287 АТ 102 | E42: 2017 | F42: Площадка | G42: SPECPRICEP 994283 | H42: АХ 3548 86 | I42: 2018 | J42: Новый Уренгой | K42: 162963 | L42: 162843 | M42: 162843 | O42: 172843 | P42: 177843 | Q42: 9880 | R42: 14880
A43: 39 | B43: Грузовой седельный тягач | C43: КАМАЗ 44108-RF | D43: В 623 ВВ 186 | E43: 2014 | F43: Площадка | G43: МАЗ 975830-3021 | H43: АУ 6468 86 | I43: 2011 | J43: Новый Уренгой | K43: 462062 | L43: 458759 | M43: 458759 | O43: 468759 | P43: 473759 | Q43: 6697 | R43: 11697
A44: 40 | B44: Грузовой седельный тягач | C44: КАМАЗ 44108-RF | D44: К 142 КА 186 | E44: 2015 | F44: Площадка | G44: МАЗ 975800-3010 | H44: АУ 6475 86 | I44: 2008 | J44: Новый Уренгой | K44: 245954 | L44: 244157 | M44: 244157 | O44: 254157 | P44: 259157 | Q44: 8203 | R44: 13203
A45: 41 | B45: Грузовой седельный тягач | C45: КАМАЗ 44108-RF | D45: К 139 КЕ 186 | E45: 2016 | F45: Площадка | G45: МАЗ 975530-3012 | H45: АС 9023 86 | I45: 2006 | J45: Новый Уренгой | K45: 304573 | L45: 304049 | M45: 304049 | O45: 314049 | P45: =M45+15000 -> 319049 | Q45: 9476 | R45: 14476
A46: 42 | B46: Грузовой седельный тягач | C46: КАМАЗ 441080 | D46: Е 196 ТХ 702 | E46: 2021 | F46: Трал | G46: Хартунг 943053 | H46: ВО 6192 02 | I46: 2021 | J46: Бованенковское м/р | K46: 27152 | L46: 13300 | M46: 13300 | O46: 23300 | P46: =M46+15000 -> 28300 | Q46: -3852 | R46: 1148
A47: 43 | B47: Грузовой седельный тягач | C47: КАМАЗ 65225-RT | D47: Е 609 АТ 702 | E47: 2018 | F47: Трал | G47: SPECPRICEP 994283 | H47: ВО 0197 02 | I47: 2018 | J47: Харасавей | K47: 152953 | L47: 141854 | M47: 141854 | O47: 151854 | P47: =M47+15000 -> 156854 | Q47: -1099 | R47: 3901
A48: 44 | B48: Грузовой седельный тягач | C48: КАМАЗ 65225-RT | D48: Е 895 АА 702 | E48: 2018 | F48: Трал | G48: SPECPRICEP 994283 | H48: ВО 0440 02 | I48: 2018 | J48: Бованенковское м/р | O48: 10000 | P48: 15000 | Q48: 10000 | R48: 15000
A49: 45 | B49: Грузовой седельный тягач | C49: КАМАЗ 65225-RT | D49: Е 571 АТ 702 | E49: 2018 | F49: Трал | G49: SPECPRICEP 994283 | H49: ВО 0198 02 | I49: 2018 | J49: Харасавей | K49: 83559 | L49: 77879 | M49: 77879 | O49: 87879 | P49: 92879 | Q49: 4320 | R49: 9320
A50: 46 | B50: Грузовой седельный тягач | C50: КАМАЗ 431103 | D50: Е 322 АС 702 | E50: 2019 | F50: Площадка | G50: SPECPRICEP 994283 | H50: ВН 0073 02 | I50: 2020 | J50: Бованенковское м/р | K50: 106526 | L50: 100150 | M50: 100150 | O50: 110150 | P50: =M50+15000 -> 115150 | Q50: 3624 | R50: 8624
A51: 47 | B51: Грузовой седельный тягач | C51: КАМАЗ 431103 | D51: Е 039 АА 702 | E51: 2019 | F51: Площадка | G51: SPECPRICEP 994283 | H51: ВС 0725 02 | I51: 2019 | J51: Бованенковское м/р | K51: 39940 | L51: 28000 | M51: 28000 | O51: 38000 | P51: 43000 | Q51: -1940 | R51: 3060
A52: 48 | B52: Грузовой седельный тягач | C52: КАМАЗ 431103 | D52: Е 040 АР 702 | E52: 2019 | F52: Площадка | G52: SPECPRICEP 994283 | H52: ВС 0726 02 | I52: 2019 | J52: Бованенковское м/р | K52: 70207 | L52: 62289 | M52: 62289 | O52: 72289 | P52: 77289 | Q52: 2082 | R52: 7082
A53: 49 | B53: Грузовой седельный тягач | C53: КАМАЗ 431103 | D53: Е 035 ВЕ 702 | E53: 2019 | F53: Площадка | G53: SPECPRICEP 994283 | H53: ВС 0705 02 | I53: 2019 | J53: Бованенковское м/р | K53: 30714 | L53: 22000 | M53: 22000 | O53: 32000 | P53: 37000 | Q53: 1286 | R53: 6286
A54: 50 | B54: Грузовой седельный тягач | C54: КАМАЗ 53504-50 | D54: Е 583 АТ 702 | E54: 2018 | F54: Площадка | G54: МАЗ 975800-2010 | H54: ВО 0196 02 | I54: 2018 | J54: ПО-1 | K54: 131563 | L54: 130410 | M54: 130410 | O54: 140410 | P54: =M54+15000 -> 145410 | Q54: 8847 | R54: 13847
A55: 51 | B55: Автокран 25 т | C55: КС-55-713-5Л на шасси КАМАЗ 43118-46 | D55: Х 654 НТ 102 | E55: 2018 | F55: Автокран | J55: Новый Уренгой | K55: 44425 | L55: 41855 | M55: 41855 | N55: 398 | O55: =L55+10000 -> 51855 | P55: =M55+15000 -> 56855 | Q55: =(O55-K55)-(N55*25) -> -2520 | R55: =(P55-K55)-(N55*25) -> 2480 | S55: =300-N56 -> 45
N56: 255
A57: 52 | B57: Автокран 25 т | C57: КС-55-713-5Л на шасси КАМАЗ 43118-46 | D57: Е 940 АА 702 | E57: 2018 | F57: Автокран | J57: Новый Уренгой | K57: 60237 | L57: 57650 | M57: 57650 | N57: 27 | O57: =L57+10000 -> 67650 | P57: =M57+15000 -> 72650 | Q57: =(O57-K57)-(N57*25) -> 6738 | R57: =(P57-K57)-(N57*25) -> 11738 | S57: =300-N58 -> 293
N58: 7
A59: 53 | B59: Автокран 25 т | C59: КС-55-713-5В на шасси КАМАЗ 43118-46 | D59: Е 832 СР 702 | E59: 2022 | F59: Автокран | J59: Новый Уренгой | K59: 7769 | L59: 3980 | M59: 3980 | N59: 694 | O59: =L59+10000 -> 13980 | P59: =M59+15000 -> 18980 | Q59: =(O59-K59)-(N59*25) -> -11139 | R59: =(P59-K59)-(N59*25) -> -6139 | S59: =300-N60 -> -232
N60: 532
A61: 54 | B61: Автокран 25 т | C61: КС-55-713-5В на шасси КАМАЗ 43118-46 | D61: Е 219 СВ 702 | E61: 2022 | F61: Автокран | J61: Новый Уренгой | K61: 4765 | L61: 3749 | M61: 3749 | N61: 92 | O61: =L61+10000 -> 13749 | P61: 18749 | Q61: =(O61-K61)-(N61*25) -> 6684 | R61: =(P61-K61)-(N61*25) -> 11684 | S61: =300-N62 -> 262
N62: 38
A63: 55 | B63: Автокран 50 т | C63: КC-65713-5 | D63: Е 139 РХ702 | E63: 2021 | F63: Автокран | J63: ПО-1 | K63: 3138 | L63: 3199 | M63: 3199 | N63: 338 | O63: =L63+10000 -> 13199 | P63: =M63+15000 -> 18199 | Q63: =(O63-K63)-(N63*25) -> 1611 | R63: =(P63-K63)-(N63*25) -> 6611 | S63: =300-N64 -> 135
N64: 165
A65: 56 | B65: Автокран 25 т | C65: КС-55-713-5В на шасси КАМАЗ 43118-46 | D65: Е 998 МТ 702 | E65: 2021 | F65: Автокран | J65: ПО-1 | K65: 5647 | L65: 5432 | M65: 5432 | N65: 1124 | O65: =L65+10000 -> 15432 | P65: =M65+15000 -> 20432 | Q65: =(O65-K65)-(N65*25) -> -18315 | R65: =(P65-K65)-(N65*25) -> -13315 | S65: =300-N66 -> -534
N66: 834
A67: 57 | B67: Автокран 50 т | C67: КC-65713-5 | D67: Е 311 ТУ 702 | E67: 2021 | F67: Автокран | J67: Харасавей | K67: 4265 | N67: 2652 | O67: =M67+10000 -> 10000 | P67: =M67+15000 -> 15000 | Q67: =(O67-K67)-(N67*25) -> -60565 | R67: =(P67-K67)-(N67*25) -> -55565 | S67: =300-N68 -> -1224
N68: 1524
A69: 58 | B69: Автокран 50 т | C69: КC-65713-5 | D69: Е 170 РХ 702 | E69: 2021 | F69: Автокран | J69: Харасавей | K69: 2600 | N69: 2707 | O69: =M69+10000 -> 10000 | P69: =M69+15000 -> 15000 | Q69: =(O69-K69)-(N69*25) -> -60275 | R69: =(P69-K69)-(N69*25) -> -55275 | S69: =300-N70 -> -1968
N70: 2268
A71: 59 | B71: Автокран 50 т | C71: КC-65713-5 | D71: Е 985 МТ 702 | E71: 2021 | F71: Автокран | J71: Харасавей | K71: 6736 | L71: 4700 | M71: 4700 | N71: 2965 | O71: =M71+10000 -> 14700 | P71: =M71+15000 -> 19700 | Q71: =(O71-K71)-(N71*25) -> -66161 | R71: =(P71-K71)-(N71*25) -> -61161 | S71: =300-N72 -> -1740
N72: 2040
A73: 60 | B73: Автокран 50 т | C73: КC-65713-5 | D73: Е 986 МТ 702 | E73: 2021 | F73: Автокран | J73: Харасавей | K73: 6019 | L73: 5512 | M73: 5512 | N73: 2652 | O73: =M73+10000 -> 15512 | P73: =M73+15000 -> 20512 | Q73: =(O73-K73)-(N73*25) -> -56807 | R73: =(P73-K73)-(N73*25) -> -51807 | S73: =300-N74 -> -1230
N74: 1530
A75: 61 | B75: Автокран 50 т | C75: КC-65713-5 | D75: В 431 РМ 702 | E75: 2020 | F75: Автокран | J75: Харасавей | K75: 13500 | L75: 13300 | M75: 13300 | N75: 6448 | O75: =M75+10000 -> 23300 | P75: =M75+15000 -> 28300 | Q75: =(O75-K75)-(N75*25) -> -151400 | R75: =(P75-K75)-(N75*25) -> -146400 | S75: =300-N76 -> -3184
N76: 3484
A77: 62 | B77: Автокран 50 т | C77: КC-65713-5 | D77: Е 521 МУ 702 | E77: 2021 | F77: Автокран | J77: Харасавей | K77: 6775 | L77: 5425 | M77: 5425 | N77: 2593 | O77: =M77+10000 -> 15425 | P77: =M77+15000 -> 20425 | Q77: =(O77-K77)-(N77*25) -> -56175 | R77: =(P77-K77)-(N77*25) -> -51175 | S77: =300-N78 -> -1525
N78: 1825
A79: 63 | B79: Автокран 50 т | C79: КC-65713-5 | D79: К 651 ТЕ 702 | E79: 2022 | F79: Автокран | J79: Новый Уренгой | O79: =M79+10000 -> 10000 | P79: =M79+15000 -> 15000 | Q79: =(O79-K79)-(N79*25) -> 10000 | R79: =(P79-K79)-(N79*25) -> 15000 | S79: =300-N80 -> 300
A81: 64 | B81: КАМАЗ УЗСТ | C81: КАМАЗ 43118-483F-23(зав№ 1833) | D81: Е 504 ТТ 702 | E81: 2021 | F81: ПРМ | J81: Бованенковское м/р | K81: 10918 | L81: 10650 | M81: 10650 | N81: 2678 | O81: =M81+10000 -> 20650 | P81: =M81+15000 -> 25650 | Q81: =(O81-K81)-(N81*25) -> -57218 | R81: =(P81-K81)-(N81*25) -> -52218 | S81: =300-N82 -> -387
N82: 687
A83: 65 | B83: Грузопассажирский | C83: ГАЗ-231073 | D83: Е 396 ВА 702 | E83: 2019 | J83: Новый Уренгой | K83: 106245 | M83: 100360 | O83: =M83+10000 -> 110360 | P83: =M83+15000 -> 115360 | Q83: =(O83-K83)-(N83*40) -> 4115 | R83: =(P83-K83)-(N83*40) -> 9115
A84: 66 | B84: Легковой(пикап) | C84: MITSUBISHI L200 | D84: Е 975 МУ 702 | E84: 2021 | J84: Нефтеюганск | O84: =M84+10000 -> 10000 | P84: =M84+15000 -> 15000 | Q84: 10000 | R84: 15000
A85: 67 | B85: Легковой | C85: Рено Дастер | D85: Е 268 АТ 702 | E85: 2019 | J85: Новый Уренгой | O85: =M85+10000 -> 10000 | P85: =M85+15000 -> 15000 | Q85: 10000 | R85: 15000
A86: 68 | B86: Легковой | C86: ЛАДА ЛАРГУС | D86: В 454 ЕХ 186 | E86: 2017 | J86: Нефтеюганск | K86: 186520 | M86: 184900 | O86: =M86+10000 -> 194900 | P86: =M86+15000 -> 199900 | Q86: 8380 | R86: 13380
A87: 69 | B87: Легковой | C87: ЛАДА ЛАРГУС | D87: Е 258 АТ 702 | E87: 2013 | J87: Новый Уренгой | O87: =M87+10000 -> 10000 | P87: =M87+15000 -> 15000 | Q87: 10000 | R87: 15000
A88: 70 | B88: Автотопливозаправщик | C88: УРАЛ 4672L2-10 | D88: Е 296 ХУ 702 | E88: 2022 | J88: ПО-1 | K88: 2762 | M88: 2660 | N88: 410 | O88: =M88+10000 -> 12660 | P88: =M88+15000 -> 17660 | Q88: -6502 | R88: -1502
A89: 71 | B89: Вахтовый автобус | C89: КАМАЗ43118 | D89: Е 738 НА702 | E89: 2021 | J89: Харасавей | O89: =M89+10000 -> 10000 | P89: =M89+15000 -> 15000 | Q89: 10000 | R89: 15000
A90: 72 | B90: Вахтовый автобус | C90: НЕФАЗ 4208-34 4208-34 | D90: Е 677 ХТ 702 | E90: 2021 | J90: Бованенковское м/р | O90: =M90+10000 -> 10000 | P90: =M90+15000 -> 15000 | Q90: 10000 | R90: 15000

Sheet Автокраны
A1: Сводный отчёт по проведению ТО. ОП Нефтеюганск ООО "СпецТранс-Север" на 17.11.2022
A2: Автомобиль | F2: Дислокация | G2: Пробег текущий | H2: Пробег ТО-1 | I2: Пробег ТО-2 | J2: м/ч (х/х) тек. | K2: м/ч (х/х) общ. | L2: Пробег при следущем ТО-1 | M2: Пробег при следущем ТО-2 | N2: Запас хода до ТО-1 | O2: Запас хода до ТО-2 | P2: Осталось часов РВО до замены фильтра
A3: № п/п | B3: Тип ТС | C3: Модель | D3: Гос № | E3: Год выпуска
J4: РВО тек. | K4: РВО общ.
A5: 1 | B5: Автокран 25 т | C5: КС-55-713-5Л на шасси КАМАЗ 43118-46 | D5: Х 654 НТ 102 | E5: 2018 | F5: Новый Уренгой | G5: 44425 | H5: 41855 | I5: 41855 | J5: 398 | L5: =H5+10000 -> 51855 | M5: =I5+15000 -> 56855 | N5: =(L5-G5)-(J5*25) -> -2520 | O5: =(M5-G5)-(J5*25) -> 2480 | P5: =300-J6 -> 45
J6: 255
A7: 2 | B7: Автокран 25 т | C7: КС-55-713-5Л на шасси КАМАЗ 43118-46 | D7: Е 940 АА 702 | E7: 2018 | F7: Новый Уренгой | G7: 60237 | H7: 57650 | I7: 57650 | J7: 27 | L7: =H7+10000 -> 67650 | M7: =I7+15000 -> 72650 | N7: =(L7-G7)-(J7*25) -> 6738 | O7: =(M7-G7)-(J7*25) -> 11738 | P7: =300-J8 -> 293
J8: 7
A9: 3 | B9: Автокран 25 т | C9: КС-55-713-5В на шасси КАМАЗ 43118-46 | D9: Е 832 СР 702 | E9: 2022 | F9: Новый Уренгой | G9: 7769 | H9: 3980 | I9: 3980 | J9: 694 | L9: =H9+10000 -> 13980 | M9: =I9+15000 -> 18980 | N9: =(L9-G9)-(J9*25) -> -11139 | O9: =(M9-G9)-(J9*25) -> -6139 | P9: =300-J10 -> -232
J10: 532
A11: 4 | B11: Автокран 25 т | C11: КС-55-713-5В на шасси КАМАЗ 43118-46 | D11: Е 219 СВ 702 | E11: 2022 | F11: Новый Уренгой | G11: 4765 | H11: 3749 | I11: 3749 | J11: 92 | L11: =H11+10000 -> 13749 | M11: =I11+15000 -> 18749 | N11: =(L11-G11)-(J11*25) -> 6684 | O11: =(M11-G11)-(J11*25) -> 11684 | P11: =300-J12 -> 262
J12: 38
A13: 5 | B13: Автокран 50 т | C13: КC-65713-5 | D13: Е 139 РХ702 | E13: 2021 | F13: ПО-1 | G13: 3138 | H13: 3199 | I13: 3199 | J13: 338 | L13: =H13+10000 -> 13199 | M13: =I13+15000 -> 18199 | N13: =(L13-G13)-(J13*25) -> 1611 | O13: =(M13-G13)-(J13*25) -> 6611 | P13: =300-J14 -> 135
J14: 165
A15: 6 | B15: Автокран 25 т | C15: КС-55-713-5В на шасси КАМАЗ 43118-46 | D15: Е 998 МТ 702 | E15: 2021 | F15: ПО-1 | G15: 5647 | H15: 5432 | I15: 5432 | J15: 1124 | L15: =H15+10000 -> 15432 | M15: =I15+15000 -> 20432 | N15: =(L15-G15)-(J15*25) -> -18315 | O15: =(M15-G15)-(J15*25) -> -13315 | P15: =300-J16 -> -534
J16: 834
A17: 7 | B17: Автокран 50 т | C17: КC-65713-5 | D17: Е 311 ТУ 702 | E17: 2021 | F17: Харасавей | G17: 4265 | J17: 2652 | L17: =I17+10000 -> 10000 | M17: =I17+15000 -> 15000 | N17: =(L17-G17)-(J17*25) -> -60565 | O17: =(M17-G17)-(J17*25) -> -55565 | P17: =300-J18 -> -1224
J18: 1524
A19: 8 | B19: Автокран 50 т | C19: КC-65713-5 | D19: Е 170 РХ 702 | E19: 2021 | F19: Харасавей | G19: 2600 | J19: 2707 | L19: =I19+10000 -> 10000 | M19: =I19+15000 -> 15000 | N19: =(L19-G19)-(J19*25) -> -60275 | O19: =(M19-G19)-(J19*25) -> -55275 | P19: =300-J20 -> -1968
J20: 2268
A21: 9 | B21: Автокран 50 т | C21: КC-65713-5 | D21: Е 985 МТ 702 | E21: 2021 | F21: Бованенковское м/р | G21: 6736 | H21: 4700 | I21: 4700 | J21: 2965 | L21: =I21+10000 -> 14700 | M21: =I21+15000 -> 19700 | N21: =(L21-G21)-(J21*25) -> -66161 | O21: =(M21-G21)-(J21*25) -> -61161 | P21: =300-J22 -> -1740
J22: 2040
A23: 10 | B23: Автокран 50 т | C23: КC-65713-5 | D23: Е 986 МТ 702 | E23: 2021 | F23: Бованенковское м/р | G23: 6019 | H23: 5512 | I23: 5512 | J23: 2652 | L23: =I23+10000 -> 15512 | M23: =I23+15000 -> 20512 | N23: =(L23-G23)-(J23*25) -> -56807 | O23: =(M23-G23)-(J23*25) -> -51807 | P23: =300-J24 -> -1230
J24: 1530
A25: 11 | B25: Автокран 50 т | C25: КC-65713-5 | D25: В 431 РМ 702 | E25: 2020 | F25: Бованенковское м/р | G25: 13500 | H25: 13300 | I25: 13300 | J25: 6448 | L25: =I25+10000 -> 23300 | M25: =I25+15000 -> 28300 | N25: =(L25-G25)-(J25*25) -> -151400 | O25: =(M25-G25)-(J25*25) -> -146400 | P25: =300-J26 -> -3184
J26: 3484
A27: 12 | B27: Автокран 50 т | C27: КC-65713-5 | D27: Е 521 МУ 702 | E27: 2021 | F27: Бованенковское м/р | G27: 6775 | H27: 5425 | I27: 5425 | J27: 2593 | L27: =I27+10000 -> 15425 | M27: =I27+15000 -> 20425 | N27: =(L27-G27)-(J27*25) -> -56175 | O27: =(M27-G27)-(J27*25) -> -51175 | P27: =300-J28 -> -1525
J28: 1825
A29: 13 | B29: Автокран 50 т | C29: КC-65713-5 | D29: К 651 ТЕ 702 | E29: 2022 | F29: Новый Уренгой | L29: =I29+10000 -> 10000 | M29: =I29+15000 -> 15000 | N29: =(L29-G29)-(J29*25) -> 10000 | O29: =(M29-G29)-(J29*25) -> 15000 | P29: =300-J30 -> 300
A31: 14 | B31: КАМАЗ УЗСТ | C31: КАМАЗ 43118-483F-23(зав№ 1833) | D31: Е 504 ТТ 702 | E31: 2021 | F31: Бованенковское м/р | G31: 10918 | H31: 10650 | I31: 10650 | J31: 0 | L31: =I31+10000 -> 20650 | M31: =I31+15000 -> 25650 | N31: =(L31-G31)-(J31*25) -> 9732 | O31: =(M31-G31)-(J31*25) -> 14732 | P31: =300-J32 -> -387
J32: 687
